bitfinex/quotes_ETHUSD_20241030
["timestamp","ask_amount","ask_price","bid_price","bid_amount"]
[1730262844330,7.56617,2643.4,2643.0,1.82478052]
[1730262844526,3.78308,2643.4,2643.0,1.82478052]
[1730262844892,7.56616,2643.4,2643.0,1.82478052]
[1730262845091,7.56616,2643.4,2643.0,2.61574661]
[1730262845389,3.78308,2643.4,2643.0,1.82478052]
[1730262845589,3.78308,2643.4,2643.0,2.61574661]
[1730262845824,7.56619,2643.4,2643.0,2.61574661]
[1730262846595,3.78308,2643.4,2643.0,2.61574661]
[1730262847118,3.78308,2643.4,2643.0,6.39931661]
[1730262847522,3.78308,2643.4,2643.1,0.79096609]
[1730262847719,3.78308,2643.4,2643.0,6.39931661]
[1730262848530,3.78308,2643.4,2643.1,2.27]
[1730262848734,3.78308,2643.4,2643.0,2.61574661]
[1730262849123,7.56619,2643.4,2643.0,2.61574661]
[1730262849319,3.78308,2643.4,2643.0,2.61574661]
[1730262849526,3.78308,2643.4,2643.1,0.79096609]
[1730262850040,3.78308,2643.4,2643.0,6.39929661]
[1730262850609,3.80174,2644.3,2643.0,6.39929661]
[1730262850610,0.772,2644.0,2643.4,3.7829]
[1730262850809,0.772,2644.2,2643.5,1.59083473]
[1730262851027,3.78222,2644.0,2643.6,0.79343473]
[1730262851331,4.55391,2644.2,2643.8,0.7974]
[1730262851332,8.33591,2644.2,2643.8,0.7974]
[1730262851536,3.78205,2644.1,2643.8,0.7974]
[1730262852545,3.78191,2644.2,2643.8,0.7974]
[1730262853439,7.56386,2644.2,2643.8,0.7974]
[1730262853618,3.78191,2644.2,2643.8,0.7974]
[1730262854612,6.03644552,2644.4,2643.8,0.7974]
[1730262854838,3.78176,2644.3,2643.8,5.26543502]
[1730262855039,3.78176,2644.3,2643.8,6.05886975]
[1730262855218,3.78176,2644.3,2643.8,5.26543502]
[1730262855620,3.78186,2644.3,2643.8,1.48301502]
[1730262855821,4.55367,2644.4,2643.8,1.48301502]
[1730262855822,3.78188,2644.2,2643.8,1.48301502]
[1730262856022,3.78188,2644.2,2643.9,0.60589898]
[1730262856721,3.78188,2644.2,2643.8,1.48301502]
[1730262858845,3.78188,2644.2,2643.8,5.26544502]
[1730262859049,3.78188,2644.2,2643.8,1.48301502]
[1730262859370,1.48277552,2643.9,2643.6,0.79343473]
[1730262859648,0.772,2643.8,2643.3,0.7974]
[1730262859851,7.56529,2643.7,2643.3,0.7974]
[1730262860238,3.78262,2643.7,2643.3,0.7974]
[1730262860644,3.78273,2643.6,2643.3,0.7974]
[1730262862914,3.7831,2643.4,2643.0,0.79343473]
[1730262863153,3.7831,2643.4,2642.9,4.57705473]
[1730262863650,3.7831,2643.4,2642.9,3.78362]
[1730262864014,7.56619,2643.4,2642.9,3.78362]
[1730262864353,3.78309,2643.4,2642.9,3.78362]
[1730262864547,3.78309,2643.4,2642.9,5.61202485]
[1730262864726,7.56619,2643.4,2642.9,5.61202485]
[1730262864927,3.78309,2643.4,2642.9,5.61202485]
[1730262865255,3.78309,2643.4,2642.9,6.40545958]
[1730262867278,0.772,2643.5,2643.0,3.78357]
[1730262867447,0.772,2643.5,2643.1,4.57217851]
[1730262870717,0.772,2643.5,2643.1,5.39297851]
[1730262871159,3.7828,2643.6,2643.1,5.39297851]
[1730262871679,3.7828,2643.6,2643.2,3.78328]
[1730262871834,0.8186,2643.7,2643.2,3.78328]
[1730262872020,3.78252,2643.8,2643.3,4.32240985]
[1730262872721,3.78252,2643.8,2643.4,0.8208]
[1730262873716,3.78252,2643.8,2643.3,3.78312]
[1730262876759,3.78315,2643.3,2643.1,0.79343473]
[1730262876959,3.78315,2643.3,2642.7,14.62040915]
[1730262876960,3.78343,2643.1,2642.7,4.24987388]
[1730262877455,3.78358,2643.0,2642.7,3.45643915]
[1730262881742,4.60246,2642.8,2642.7,3.45643915]
[1730262881936,0.8186,2642.8,2642.7,3.45643915]
[1730262882542,3.78373,2642.9,2642.7,3.45643915]
[1730262888454,4.60217,2643.0,2642.7,3.45643915]
[1730262888660,3.78357,2643.0,2642.7,3.45643915]
[1730262889072,7.56726,2643.0,2642.7,3.45643915]
[1730262889578,7.56726,2643.0,2642.7,4.24673915]
[1730262889887,3.78357,2643.0,2642.7,4.24673915]
[1730262890378,7.56723,2643.0,2642.7,4.24673915]
[1730262893383,3.78357,2643.0,2642.7,4.24673915]
[1730262893682,7.56723,2643.0,2642.7,4.24673915]
[1730262894568,3.78357,2643.0,2642.7,4.24673915]
[1730262895089,7.56725,2643.0,2642.7,4.24673915]
[1730262895997,3.78357,2643.0,2642.7,4.24673915]
[1730262896495,7.56723,2643.0,2642.7,4.24673915]
[1730262898565,3.78357,2643.0,2642.7,4.24673915]
[1730262898993,7.56724,2643.0,2642.7,4.24673915]
[1730262899301,3.78357,2643.0,2642.7,4.24673915]
[1730262900296,8.35504,2643.2,2642.7,4.24673915]
[1730262900457,3.78346,2643.1,2642.7,4.24673915]
[1730262904685,3.7836,2643.0,2642.7,4.24673915]
[1730262909813,7.56702,2643.1,2642.7,5.04983707]
[1730262910532,3.7836,2643.0,2642.7,5.04983707]
[1730262910890,3.7836,2643.0,2642.7,4.24673915]
[1730262913226,3.78346,2643.1,2642.7,4.24673915]
[1730262914122,7.56698,2643.1,2642.7,4.24673915]
[1730262915617,3.78346,2643.1,2642.7,4.24673915]
[1730262915823,7.56701,2643.1,2642.7,4.24673915]
[1730262918131,3.78358,2643.0,2642.7,4.24673915]
[1730262919329,3.78358,2643.0,2642.7,5.12890356]
[1730262919531,3.7833,2643.2,2642.7,5.12890356]
[1730262919740,3.78344,2643.1,2642.7,5.12890356]
[1730262920294,7.567,2643.1,2642.7,5.12890356]
[1730262920501,7.567,2643.1,2642.7,5.9197885]
[1730262922530,3.78344,2643.1,2642.8,0.79088494]
[1730262923100,7.56697,2643.1,2642.8,0.79088494]
[1730262923507,3.78344,2643.1,2642.8,0.79088494]
[1730262929230,3.78323,2643.3,2642.8,5.82191852]
[1730262929453,3.78239,2643.9,2643.3,4.59205]
[1730262929651,3.78216,2644.0,2643.6,0.809]
[1730262929905,4.59026,2644.2,2643.7,3.78256]
[1730262930110,3.78196,2644.2,2643.7,4.57622181]
[1730262930537,3.78223,2644.0,2643.7,0.79366181]
[1730262930744,3.78223,2644.0,2643.6,0.79366181]
[1730262930745,3.78246,2643.8,2643.6,0.79366181]
[1730262930906,3.78246,2643.8,2643.4,0.8071]
[1730262932238,3.78257,2643.7,2643.4,0.8071]
[1730262932511,3.78246,2643.8,2643.4,0.8071]
[1730262933443,3.78246,2643.8,2643.4,1.49376373]
[1730262935504,3.78285,2643.6,2643.2,1.60076181]
[1730262935859,3.78287,2643.5,2643.2,0.8071]
[1730262936807,7.56586,2643.5,2643.2,0.8071]
[1730262936966,7.56586,2643.5,2643.0,2.27643733]
[1730262936967,0.7585,2643.5,2643.0,0.8071]
[1730262937167,7.56645,2643.3,2643.0,0.8071]
[1730262937390,3.78322,2643.3,2643.0,0.8071]
[1730262938215,3.78322,2643.3,2643.0,1.60076181]
[1730262939380,4.54145,2643.5,2643.0,6.46614409]
[1730262940981,8.32444,2643.5,2643.0,6.46614409]
[1730262941313,4.54145,2643.5,2643.0,6.46614409]
[1730262941602,4.54145,2643.5,2643.0,5.67248228]
[1730262943100,4.54145,2643.5,2643.0,9.45596228]
[1730262943414,4.54145,2643.5,2643.1,1.47323996]
[1730262943583,4.54145,2643.5,2643.0,4.59058]
[1730262944167,3.78295,2643.5,2643.0,4.59058]
[1730262946146,3.78295,2643.5,2643.1,3.78341]
[1730262946816,3.78295,2643.5,2643.0,0.8071]
[1730262946985,3.78295,2643.5,2643.0,4.59059]
[1730262947175,3.78303,2643.4,2643.0,0.8071]
[1730262947696,4.58453,2643.4,2643.0,0.8071]
[1730262947905,0.8015,2643.4,2643.0,4.59067]
[1730262950076,0.8015,2643.4,2643.0,4.59059]
[1730262950276,3.78295,2643.5,2643.0,4.59059]
[1730262954063,7.56589,2643.5,2643.0,4.59059]
[1730262954267,3.78294,2643.5,2643.0,4.59059]
[1730262954422,3.78326,2643.3,2642.8,0.79366181]
[1730262954767,3.78326,2643.3,2642.8,4.57749181]
[1730262957781,3.78326,2643.3,2642.8,6.06021733]
[1730262959992,3.78326,2643.3,2642.8,9.84399733]
[1730262960174,3.78326,2643.3,2642.8,6.06021733]
[1730262960374,3.78326,2643.3,2642.8,6.06020733]
[1730262961907,0.8183,2643.1,2642.7,4.25010096]
[1730262962190,0.8183,2643.0,2642.7,3.45643915]
[1730262963153,0.8183,2643.0,2642.7,7.24042915]
[1730262963969,0.8183,2643.0,2642.7,3.45643915]
[1730262967285,3.78381,2642.9,2642.7,3.45643915]
[1730262967610,0.8183,2642.8,2642.7,3.45643915]
[1730262972763,3.78381,2642.9,2642.7,3.45643915]
[1730262972980,0.8183,2643.0,2642.7,3.45643915]
[1730262973330,3.78349,2643.1,2642.7,4.21003915]
[1730262974384,3.78358,2643.0,2642.7,4.21003915]
[1730262982413,3.78349,2643.1,2642.7,4.21003915]
[1730262982715,7.56703,2643.1,2642.7,4.21003915]
[1730262983022,3.78349,2643.1,2642.7,4.21003915]
[1730262984123,7.56705,2643.1,2642.7,4.21003915]
[1730262984333,3.78358,2643.0,2642.7,4.21003915]
[1730262984514,3.78349,2643.1,2642.7,4.21003915]
[1730262985041,7.56701,2643.1,2642.7,4.21003915]
[1730262985213,3.78361,2643.0,2642.7,4.21003915]
[1730262988539,4.60161,2643.2,2642.7,4.21003915]
[1730262988747,4.60161,2643.2,2642.7,7.99390915]
[1730262989302,4.60161,2643.2,2642.7,8.78757096]
[1730262989452,4.60161,2643.2,2642.7,7.99390915]
[1730262990292,8.38503,2643.2,2642.7,5.00370096]
[1730262990477,8.38503,2643.2,2642.7,4.21003915]
[1730262990678,8.38503,2643.2,2642.7,5.00370096]
[1730262991054,7.56673,2643.2,2642.7,4.21003915]
[1730262991252,3.78331,2643.2,2642.7,10.31168535]
[1730262992686,7.5667,2643.2,2642.7,10.31168535]
[1730262992850,3.78343,2643.1,2642.7,5.00370096]
[1730262993187,4.55813,2643.1,2642.7,3.45643915]
[1730262997604,4.55813,2643.1,2642.7,4.25010096]
[1730262997768,4.55813,2643.1,2642.7,3.45643915]
[1730262998385,4.55813,2643.1,2642.7,4.25010096]
[1730262999373,3.78331,2643.2,2642.8,0.8007]
[1730262999872,7.56672,2643.2,2642.8,0.8007]
[1730263002766,3.78346,2643.1,2642.8,0.8007]
[1730263006228,3.78346,2643.1,2642.8,1.59436181]
[1730263007199,3.78331,2643.2,2642.8,1.59436181]
[1730263007532,4.5578,2643.4,2642.8,1.59436181]
[1730263007533,4.5578,2643.4,2642.8,5.37821181]
[1730263007757,3.78315,2643.3,2642.9,4.57736181]
[1730263009241,3.0,2643.6,2643.1,1.48277552]
[1730263009432,4.59713,2643.8,2643.2,4.54621]
[1730263009581,3.78258,2643.7,2643.2,5.33994181]
[1730263010098,3.78273,2643.6,2643.2,0.763]
[1730263010888,3.78273,2643.6,2643.1,0.79366181]
[1730263011120,4.39075055,2643.6,2643.0,1.55666181]
[1730263011324,7.56611,2643.4,2643.0,1.55666181]
[1730263011521,0.8147,2643.3,2643.0,0.763]
[1730263011726,3.78336,2643.2,2642.8,0.79366181]
[1730263013632,3.78351,2643.1,2642.7,5.01310096]
[1730263013790,3.78351,2643.1,2642.8,0.79366181]
[1730263014240,3.78351,2643.1,2642.7,5.01310096]
[1730263016901,0.838157,2643.1,2642.7,4.25010096]
[1730263017101,3.78373,2642.9,2642.8,3.20180795]
[1730263024066,5.26650552,2642.9,2642.8,3.20180795]
[1730263024276,6.06560552,2642.9,2642.8,3.20180795]
[1730263026031,9.06560552,2642.9,2642.8,3.20180795]
[1730263026227,10.35053707,2642.9,2642.8,3.20180795]
[1730263029288,10.90053707,2642.9,2642.8,3.20180795]
[1730263030214,10.90053707,2642.9,2642.0,0.79366181]
[1730263030215,4.58396,2642.1,2642.0,2.69869407]
[1730263030372,6.06673552,2642.1,2642.0,2.69869407]
[1730263030574,7.05188607,2642.1,2642.0,2.69869407]
[1730263031083,3.78531,2641.8,2641.6,0.8195]
[1730263031296,3.78531,2641.8,2641.2,6.45522293]
[1730263031297,3.78553,2641.7,2641.4,0.8195]
[1730263031600,3.78531,2641.8,2641.4,0.8195]
[1730263034297,3.78518,2641.9,2641.4,0.8195]
[1730263036732,3.78529,2641.9,2641.4,0.8195]
[1730263037295,3.78509,2642.0,2641.4,0.8195]
[1730263037499,3.78531,2641.8,2641.4,0.8195]
[1730263039650,4.58441,2641.8,2641.2,4.60555]
[1730263039820,3.78548,2641.7,2641.2,4.60555]
[1730263041457,4.58441,2641.8,2641.2,4.60555]
[1730263042061,3.78544,2641.7,2641.2,4.60555]
[1730263042575,4.58441,2641.8,2641.2,4.60555]
[1730263044491,4.58441,2641.8,2641.2,5.59852646]
[1730263044650,8.36979,2641.8,2641.2,5.59852646]
[1730263045378,4.58441,2641.8,2641.2,5.59852646]
[1730263046194,8.36978,2641.8,2641.2,5.59852646]
[1730263047592,4.58441,2641.8,2641.2,5.59852646]
[1730263048478,3.78546,2641.7,2641.2,5.59852646]
[1730263048679,3.78531,2641.8,2641.3,0.8195]
[1730263048883,3.78561,2641.6,2641.3,0.8195]
[1730263049079,7.57128,2641.6,2641.3,0.8195]
[1730263049450,3.78561,2641.6,2641.3,0.8195]
[1730263052251,3.78544,2641.7,2641.3,0.8195]
[1730263053048,7.571,2641.7,2641.3,0.8195]
[1730263053505,3.78544,2641.7,2641.3,0.8195]
[1730263054481,7.57101,2641.7,2641.3,0.8195]
[1730263054690,3.78544,2641.7,2641.3,0.8195]
[1730263055185,7.57096,2641.7,2641.3,0.8195]
[1730263055386,3.78544,2641.7,2641.3,0.8195]
[1730263055554,3.7856,2641.6,2641.3,0.8195]
[1730263057628,7.571,2641.7,2641.3,0.8195]
[1730263059412,3.78544,2641.7,2641.3,0.8195]
[1730263059735,3.78538,2641.8,2641.4,0.8218]
[1730263060040,3.78545,2641.7,2641.4,0.8218]
[1730263063112,3.78545,2641.7,2641.0,5.32420461]
[1730263063444,3.78567,2641.6,2641.1,0.8218]
[1730263063598,3.78567,2641.6,2641.1,4.60806]
[1730263068212,3.78567,2641.6,2641.1,5.60128546]
[1730263073725,3.78567,2641.6,2641.1,6.39494727]
[1730263075455,3.78567,2641.6,2641.2,0.79366181]
[1730263075952,3.78567,2641.6,2641.3,0.79366181]
[1730263076726,6.03371552,2641.8,2641.3,0.79366181]
[1730263076939,3.78544,2641.7,2641.4,0.8224]
[1730263077243,3.78544,2641.7,2641.4,1.61606181]
[1730263077619,3.78544,2641.7,2641.4,0.8224]
[1730263078421,3.78544,2641.7,2641.3,0.79366181]
[1730263079719,9.05350552,2641.8,2641.4,0.79366181]
[1730263079919,10.03801607,2641.8,2641.4,0.79366181]
[1730263080451,3.78549,2641.7,2641.4,0.79366181]
[1730263082920,10.03803607,2641.8,2641.4,0.79366181]
[1730263083154,3.78547,2641.7,2641.4,0.79366181]
[1730263083550,10.03803607,2641.8,2641.4,0.79366181]
[1730263084035,3.78545,2641.7,2641.4,0.79366181]
[1730263084662,3.78545,2641.7,2641.2,4.60844]
[1730263087265,5.26811552,2641.8,2641.2,4.60844]
[1730263087468,5.87408707,2641.8,2641.3,3.786]
[1730263087946,3.78548,2641.7,2641.2,4.60844]
[1730263089265,5.26811552,2641.8,2641.3,3.78601]
[1730263089434,9.05352552,2641.8,2641.3,3.78601]
[1730263089763,9.05353552,2641.8,2641.3,3.78601]
[1730263090066,3.8885152,2644.6,2641.8,0.8112]
[1730263090067,0.59241488,2642.4,2641.8,0.8112]
[1730263090271,3.78452,2642.4,2641.9,3.78513]
[1730263090964,3.78452,2642.4,2641.8,0.8112]
[1730263091165,3.78476,2642.2,2641.8,0.8112]
[1730263091632,3.78488,2642.1,2641.8,0.8112]
[1730263093368,3.78504,2642.0,2641.8,0.8112]
[1730263095280,3.78473,2642.2,2641.8,0.8112]
[1730263095463,3.78467,2642.3,2641.8,4.9051941]
[1730263095671,3.78444,2642.4,2641.9,3.78512]
[1730263096337,3.78444,2642.4,2641.8,1.1199741]
[1730263096338,3.78458,2642.3,2641.8,1.1199741]
[1730263096568,3.78458,2642.3,2641.8,0.8112]
[1730263097879,3.78458,2642.3,2641.8,3.78527]
[1730263098050,3.78458,2642.3,2641.9,0.8112]
[1730263098454,3.78444,2642.4,2641.9,4.59633]
[1730263098676,7.56896,2642.4,2641.9,4.59633]
[1730263098993,3.78444,2642.4,2641.9,4.59633]
[1730263099152,3.78444,2642.4,2641.9,1.72874455]
[1730263099350,3.78469,2642.3,2641.9,0.8112]
[1730263100382,3.78444,2642.4,2641.9,0.8112]
[1730263100683,3.78467,2642.3,2641.9,0.8112]
[1730263102559,3.78444,2642.4,2641.9,4.59634]
[1730263102788,3.78444,2642.4,2642.0,4.59619]
[1730263102992,3.78432,2642.5,2642.0,5.434323]
[1730263103284,3.78426,2642.6,2642.1,0.8112]
[1730263103484,3.78426,2642.6,2642.2,0.8112]
[1730263103686,3.78411,2642.7,2642.2,0.8112]
[1730263104022,3.78396,2642.8,2642.3,3.78457]
[1730263104168,3.78396,2642.8,2642.4,0.8112]
[1730263105188,7.56791,2642.8,2642.4,0.8112]
[1730263105392,3.78395,2642.8,2642.4,4.59561]
[1730263105594,3.78373,2642.9,2642.4,3.78441]
[1730263105840,3.78373,2642.9,2642.5,0.8112]
[1730263107280,7.56754,2642.9,2642.5,0.8112]
[1730263107513,3.78373,2642.9,2642.5,0.8112]
[1730263107730,7.56754,2642.9,2642.5,0.8112]
[1730263107886,3.78373,2642.9,2642.5,0.8112]
[1730263108218,7.56752,2642.9,2642.5,1.74665252]
[1730263108716,3.78413,2642.7,2642.5,0.8112]
[1730263108916,3.78432,2642.5,2642.0,0.8112]
[1730263109118,5.26709552,2642.5,2642.0,0.8112]
[1730263109319,3.78443,2642.4,2642.0,0.8112]
[1730263109885,3.78459,2642.3,2642.0,0.8112]
[1730263113610,7.56875,2642.5,2642.0,0.8112]
[1730263113800,3.78432,2642.5,2642.0,0.8112]
[1730263113996,3.78448,2642.4,2642.0,0.8112]
[1730263114412,3.78448,2642.4,2642.0,1.41911255]
[1730263114911,3.78458,2642.3,2642.0,1.41911255]
[1730263115388,3.78432,2642.5,2642.0,1.41911255]
[1730263115822,7.5687,2642.5,2642.0,1.41911255]
[1730263116121,3.78432,2642.5,2642.1,1.68332426]
[1730263116492,3.78415,2642.6,2642.1,5.46816426]
[1730263119326,3.78411,2642.7,2642.1,5.46816426]
[1730263119628,3.78432,2642.5,2642.1,0.7844]
[1730263119995,7.56872,2642.5,2642.1,0.7844]
[1730263120196,7.5687,2642.5,2642.1,0.7844]
[1730263121406,3.78432,2642.5,2642.1,0.7844]
[1730263121606,7.56872,2642.5,2642.1,0.7844]
[1730263121824,3.78432,2642.5,2642.1,0.7844]
[1730263122028,7.56872,2642.5,2642.1,0.7844]
[1730263123535,3.78432,2642.5,2642.1,0.7844]
[1730263123738,7.5687,2642.5,2642.1,0.7844]
[1730263124712,3.78444,2642.4,2642.1,0.7844]
[1730263127544,3.78432,2642.5,2642.1,0.7844]
[1730263127740,3.78432,2642.5,2642.1,0.51773025]
[1730263127911,3.78432,2642.5,2642.2,0.7988]
[1730263128953,7.56872,2642.5,2642.2,0.7988]
[1730263129156,3.78445,2642.4,2642.2,0.7988]
[1730263130259,3.78432,2642.5,2642.2,0.7988]
[1730263130469,3.78432,2642.5,2642.2,1.51801483]
[1730263133648,3.78403,2642.7,2642.2,1.51801483]
[1730263133856,3.78424,2642.6,2642.2,1.51801483]
[1730263134833,3.78403,2642.7,2642.2,1.51801483]
[1730263135010,3.7843,2642.5,2642.2,1.51801483]
[1730263135443,3.78445,2642.4,2642.2,1.51801483]
[1730263135650,3.78445,2642.4,2642.2,0.7988]
[1730263137261,3.7843,2642.5,2642.2,0.7988]
[1730263142427,3.78469,2642.3,2642.1,0.79376552]
[1730263142626,3.78469,2642.3,2642.0,0.7715]
[1730263143589,3.78469,2642.3,2642.0,1.56526552]
[1730263143749,3.78469,2642.3,2642.0,0.7715]
[1730263144159,3.78469,2642.3,2642.0,1.56526552]
[1730263145387,3.78469,2642.3,2642.0,0.7715]
[1730263145550,3.78469,2642.3,2642.0,1.56526552]
[1730263145757,3.78469,2642.3,2642.0,0.7715]
[1730263147749,3.78469,2642.3,2642.0,1.56526552]
[1730263147991,3.78469,2642.3,2642.0,0.7715]
[1730263148194,7.5688,2642.5,2642.0,0.7715]
[1730263148379,7.5688,2642.5,2642.0,1.56526552]
[1730263148563,3.78447,2642.4,2642.0,1.56526552]
[1730263157717,3.78447,2642.4,2642.1,0.79376552]
[1730263157916,3.78447,2642.4,2642.0,1.56526552]
[1730263163055,3.78447,2642.4,2642.0,5.35026552]
[1730263163250,3.78447,2642.4,2642.0,6.68990456]
[1730263164308,3.78447,2642.4,2642.0,2.90490456]
[1730263164509,3.78447,2642.4,2642.0,1.56526552]
[1730263171032,3.78447,2642.4,2642.1,0.79376552]
[1730263172877,3.78423,2642.6,2642.1,0.79376552]
[1730263173027,7.56848,2642.6,2642.1,0.79376552]
[1730263173232,7.56848,2642.6,2642.2,0.79376552]
[1730263173233,7.56846,2642.6,2642.2,0.79376552]
[1730263174092,3.78423,2642.6,2642.2,0.79376552]
[1730263174316,7.56846,2642.6,2642.2,0.79376552]
[1730263174997,3.7843,2642.5,2642.2,0.79376552]
[1730263181821,7.56846,2642.6,2642.2,0.79376552]
[1730263182979,7.56846,2642.6,2642.3,0.7905]
[1730263183181,3.78423,2642.6,2642.3,0.7905]
[1730263183480,7.56849,2642.6,2642.3,0.7905]
[1730263183688,3.78429,2642.5,2642.3,0.7905]
[1730263185606,3.78443,2642.4,2642.3,0.7905]
[1730263186186,3.78423,2642.6,2642.3,0.7905]
[1730263186399,3.78429,2642.5,2642.3,0.7905]
[1730263191938,3.78443,2642.4,2642.3,0.7905]
[1730263192085,3.78443,2642.4,2642.1,1.59416552]
[1730263192286,3.78429,2642.5,2642.1,1.59416552]
[1730263192516,7.56868,2642.5,2642.1,1.59416552]
[1730263192685,3.78443,2642.4,2642.2,0.79376552]
[1730263193113,3.78443,2642.4,2642.1,1.59416552]
[1730263194908,3.78443,2642.4,2642.2,0.79376552]
[1730263195110,3.78443,2642.4,2642.1,1.59416552]
[1730263196645,3.78443,2642.4,2642.2,0.79376552]
[1730263197046,3.78443,2642.4,2642.1,1.59416552]
[1730263200149,4.58077,2642.6,2642.1,1.59416552]
[1730263200351,3.78435,2642.5,2642.1,1.59416552]
[1730263200820,3.78435,2642.5,2642.2,0.79376552]
[1730263201224,4.58077,2642.6,2642.2,0.79376552]
[1730263201434,3.78445,2642.4,2642.2,0.79376552]
[1730263201738,3.78445,2642.4,2642.1,1.59416552]
[1730263201907,3.78445,2642.4,2642.2,0.79376552]
[1730263202110,3.78445,2642.4,2642.1,1.59416552]
[1730263202922,3.78445,2642.4,2642.1,0.79376552]
[1730263203436,7.56896,2642.4,2642.1,0.79376552]
[1730263203657,3.78445,2642.4,2642.1,0.79376552]
[1730263210986,7.56896,2642.4,2642.1,0.79376552]
[1730263211290,3.78445,2642.4,2642.1,0.79376552]
[1730263213381,3.78445,2642.4,2642.2,0.79376552]
[1730263218219,4.58085,2642.6,2642.2,0.79376552]
[1730263218374,3.78429,2642.5,2642.2,0.79376552]
[1730263219312,3.78444,2642.4,2642.2,0.79376552]
[1730263219509,4.58085,2642.6,2642.3,0.79376552]
[1730263219678,3.78425,2642.6,2642.3,0.79376552]
[1730263220716,7.56851,2642.6,2642.3,0.79376552]
[1730263221377,3.78425,2642.6,2642.3,0.79376552]
[1730263221781,7.56848,2642.6,2642.3,0.79376552]
[1730263222277,3.78423,2642.6,2642.3,0.79376552]
[1730263222482,7.5685,2642.6,2642.3,0.79376552]
[1730263222682,3.78429,2642.5,2642.3,0.79376552]
[1730263224818,3.78429,2642.5,2642.2,1.56736552]
[1730263226413,3.78423,2642.6,2642.3,0.79376552]
[1730263227086,3.78431,2642.5,2642.3,0.79376552]
[1730263228883,3.78423,2642.6,2642.3,0.79376552]
[1730263229497,7.56851,2642.6,2642.3,0.79376552]
[1730263230318,3.78423,2642.6,2642.3,0.79376552]
[1730263231137,7.56846,2642.6,2642.3,0.79376552]
[1730263231325,3.78423,2642.6,2642.3,0.79376552]
[1730263232007,7.56851,2642.6,2642.3,0.79376552]
[1730263232185,7.56851,2642.6,2642.2,1.56736552]
[1730263232391,3.7843,2642.5,2642.3,0.79376552]
[1730263233030,3.78423,2642.6,2642.3,0.79376552]
[1730263233529,7.56846,2642.6,2642.3,0.79376552]
[1730263234588,3.78423,2642.6,2642.3,0.79376552]
[1730263235593,3.78401,2642.7,2642.3,0.79376552]
[1730263236003,3.78412,2642.7,2642.3,0.79376552]
[1730263236223,3.78412,2642.7,2642.3,2.13355256]
[1730263236438,3.78412,2642.7,2642.3,0.79376552]
[1730263236603,3.78412,2642.7,2642.4,0.79376552]
[1730263238032,3.78412,2642.7,2642.3,0.79376552]
[1730263242197,4.58827,2642.8,2642.3,0.79376552]
[1730263242348,1.0606,2643.0,2642.5,0.7775]
[1730263242544,0.29,2643.0,2642.6,6.06066104]
[1730263243365,4.07359,2643.0,2642.6,6.06066104]
[1730263244289,0.29,2643.0,2642.6,6.06066104]
[1730263244499,0.29,2643.0,2642.7,0.7775]
[1730263246187,4.07366,2643.0,2642.7,0.7775]
[1730263251881,0.29,2643.0,2642.7,0.7775]
[1730263255195,0.29,2643.0,2642.7,1.8397231]
[1730263259328,0.29,2643.0,2642.7,5.6236531]
[1730263259958,0.29,2643.0,2642.8,2.27907552]
[1730263260642,0.29,2643.0,2642.8,6.06292552]
[1730263260998,0.29,2643.0,2642.8,2.27907552]
[1730263261331,0.29,2643.0,2642.8,3.07098793]
[1730263263526,0.29,2643.0,2642.8,6.85481793]
[1730263263745,3.78322,2643.3,2642.8,3.07098793]
[1730263264256,7.5665,2643.3,2642.8,2.27907552]
[1730263264455,3.78322,2643.3,2642.8,6.06290552]
[1730263264843,3.78322,2643.3,2642.8,2.27907552]
[1730263265255,3.78322,2643.3,2642.8,6.06292552]
[1730263265858,3.78322,2643.3,2642.8,2.27907552]
[1730263265859,7.56649,2643.3,2642.8,2.27907552]
[1730263266021,3.78322,2643.3,2642.8,6.06288552]
[1730263266418,3.78322,2643.3,2642.8,7.24600645]
[1730263266944,7.56649,2643.3,2642.8,7.24600645]
[1730263267148,3.78331,2643.2,2642.8,3.46219645]
[1730263268816,3.78322,2643.3,2642.8,7.24598645]
[1730263273347,3.78322,2643.3,2642.8,5.76321093]
[1730263275356,3.78322,2643.3,2642.8,5.76319093]
[1730263277120,0.7759,2643.6,2643.1,0.782]
[1730263277356,3.78266,2643.7,2643.2,1.48277552]
[1730263277665,3.78266,2643.7,2643.1,4.56543]
[1730263277666,3.78282,2643.6,2643.1,4.56543]
[1730263278230,3.78282,2643.6,2643.1,5.69354667]
[1730263281373,3.78282,2643.6,2643.1,1.91011667]
[1730263282330,3.78286,2643.5,2643.1,1.91011667]
[1730263282521,3.78302,2643.4,2643.1,1.91011667]
[1730263282724,3.78286,2643.5,2643.1,1.91011667]
[1730263285063,4.55838,2643.8,2643.1,0.782]
[1730263285271,3.78336,2643.2,2642.9,0.782]
[1730263285432,3.78336,2643.2,2642.7,5.35976552]
[1730263285768,3.78336,2643.2,2642.7,4.566]
[1730263285965,3.78336,2643.2,2642.8,1.8006581]
[1730263286492,3.78336,2643.2,2642.7,0.782]
[1730263286781,3.78352,2643.1,2642.7,0.782]
[1730263288440,3.78352,2643.1,2642.7,1.57576552]
[1730263288639,3.78352,2643.1,2642.7,0.782]
[1730263289344,3.78352,2643.1,2642.7,1.57576552]
[1730263289854,3.78352,2643.1,2642.8,0.6842581]
[1730263291281,3.78352,2643.1,2642.7,3.05854104]
[1730263291670,3.78352,2643.1,2642.7,6.84254104]
[1730263296382,3.78352,2643.1,2642.8,0.79376552]
[1730263296980,3.78352,2643.1,2642.7,6.84254104]
[1730263297386,3.78352,2643.1,2642.8,0.79376552]
[1730263297585,3.78316,2643.3,2642.9,1.48277552]
[1730263298000,7.5664,2643.3,2642.9,1.48277552]
[1730263298213,3.78331,2643.2,2642.9,1.48277552]
[1730263298418,3.78331,2643.2,2642.7,6.84254104]
[1730263298788,3.78331,2643.2,2642.9,1.48277552]
[1730263299122,3.78309,2643.4,2643.1,1.48277552]
[1730263299277,3.78316,2643.3,2643.0,0.796]